bitfinex/quotes_ETHUSD_20250106
["timestamp","ask_amount","ask_price","bid_price","bid_amount"]
[1736172634282,1.21663654,3641.7,3641.0,0.2221]
[1736172634737,2.74618,3641.5,3641.0,0.2221]
[1736172635273,0.06246306,3641.4,3641.0,0.2221]
[1736172635482,5.55226306,3641.4,3641.0,0.2221]
[1736172636119,5.55226306,3641.4,3641.1,35.0]
[1736172640348,5.55226306,3641.4,3641.3,0.2221]
[1736172640875,5.4898,3641.4,3641.3,0.2221]
[1736172641083,5.4898,3641.4,3641.3,35.2221]
[1736172641694,5.55135646,3641.4,3641.3,35.2221]
[1736172645371,5.4898,3641.4,3641.3,35.2221]
[1736172645755,5.4898,3641.4,3641.3,35.7871]
[1736172647574,5.4898,3641.4,3641.3,0.2221]
[1736172647968,5.55142571,3641.4,3641.3,0.2221]
[1736172648175,5.55142571,3641.4,3640.8,0.2221]
[1736172648693,5.55142571,3641.4,3640.9,35.0]
[1736172649331,5.4898,3641.4,3640.9,35.0]
[1736172649491,3.50345,3641.2,3640.9,35.0]
[1736172649694,0.7571,3641.2,3640.9,35.0]
[1736172649903,2.74649,3641.0,3640.9,35.0]
[1736172650192,0.0615436,3641.1,3640.9,35.0]
[1736172650406,0.06143235,3641.0,3640.9,35.0]
[1736172650722,5.4898,3641.4,3640.9,35.2221]
[1736172651222,6.63391807,3641.4,3640.9,35.2221]
[1736172651775,6.63391807,3641.4,3641.2,0.5575]
[1736172651981,6.63391807,3641.4,3641.1,0.2221]
[1736172652191,5.4898,3641.4,3641.1,0.2221]
[1736172652409,5.4898,3641.4,3641.2,35.0]
[1736172653335,0.06154593,3641.3,3641.2,35.0]
[1736172653839,5.4898,3641.4,3641.2,35.0]
[1736172654055,0.06154593,3641.3,3641.2,35.0]
[1736172654211,5.4898,3641.4,3641.2,35.0]
[1736172654747,0.06154593,3641.3,3641.2,35.0]
[1736172655352,1.36978052,3641.3,3639.9,0.2221]
[1736172655574,2.74651,3641.0,3639.9,2.96935]
[1736172655845,2.80794616,3640.9,3640.1,0.0075]
[1736172657125,2.74666,3640.8,3640.1,0.02746694]
[1736172657327,0.53713964,3640.7,3639.9,3.2221]
[1736172657514,3.86360758,3640.6,3639.9,0.2221]
[1736172657720,2.6429016,3640.5,3639.7,1.14754979]
[1736172657917,2.74722,3640.1,3639.5,0.178577]
[1736172658356,0.0605133,3640.0,3639.5,0.178577]
[1736172658722,2.8077833,3640.0,3639.5,0.178577]
[1736172659260,2.74734,3639.9,3639.5,0.178577]
[1736172659544,0.05984878,3639.8,3639.5,0.178577]
[1736172660043,2.74703,3640.3,3639.5,0.178577]
[1736172660204,0.06003881,3640.2,3639.6,0.2296]
[1736172660399,6.63391807,3640.5,3639.6,3.00462282]
[1736172660622,1.20429553,3640.4,3639.6,2.97715]
[1736172661635,2.68076737,3640.4,3639.6,0.2221]
[1736172661855,2.74709,3640.3,3639.6,0.2221]
[1736172662027,0.05992346,3640.2,3639.6,0.2221]
[1736172662376,0.05992346,3640.2,3639.7,0.0075]
[1736172662524,0.05992346,3640.2,3639.9,0.0075]
[1736172662863,5.4898,3640.5,3640.3,0.2221]
[1736172663465,0.06030846,3640.4,3640.3,0.2221]
[1736172663628,0.06030846,3640.4,3640.3,3.53412]
[1736172664054,0.7608,3641.7,3640.4,0.565]
[1736172664361,3.2857551,3641.5,3640.5,0.02746381]
[1736172664570,2.74623,3641.4,3640.5,0.02746381]
[1736172665068,0.5396251,3641.5,3640.5,0.02746381]
[1736172665374,0.5396251,3641.5,3640.7,2.74669]
[1736172665729,2.74623,3641.4,3640.4,2.7469]
[1736172666087,3.15089551,3641.4,3640.4,2.7469]
[1736172666228,0.40466551,3641.4,3640.6,0.5575]
[1736172666428,0.40466551,3641.4,3640.3,0.2221]
[1736172666629,2.74636,3641.2,3640.3,0.2221]
[1736172667174,0.05871648,3641.1,3640.3,0.2221]
[1736172667379,0.37969068,3641.1,3640.3,0.2221]
[1736172667585,0.8323,3641.0,3639.9,0.2221]
[1736172667931,2.74679,3640.7,3639.9,0.2221]
[1736172668134,0.05871022,3640.9,3639.9,0.2221]
[1736172668368,2.9638758,3641.1,3639.6,1.14891746]
[1736172668369,2.74687,3640.5,3639.6,1.14891746]
[1736172668592,2.747,3640.4,3639.6,1.14891746]
[1736172668733,2.80552745,3640.4,3639.6,1.14891746]
[1736172668934,0.05852745,3640.4,3639.6,1.14891746]
[1736172669353,2.74716,3640.2,3639.5,0.178577]
[1736172669736,0.05841776,3640.1,3639.5,0.178577]
[1736172670156,2.74705,3640.3,3639.5,0.178577]
[1736172670637,0.05845433,3640.2,3639.6,0.25707409]
[1736172670848,1.14410736,3640.4,3639.7,3.0]
[1736172671050,0.05817622,3640.3,3639.8,0.02747076]
[1736172671822,0.05817622,3640.3,3639.9,0.565]
[1736172671951,0.05817622,3640.3,3640.1,2.74715]
[1736172672291,1.14410736,3640.9,3640.3,0.0075]
[1736172672497,1.14410736,3640.9,3640.4,2.96904]
[1736172672644,1.14410736,3640.9,3640.6,0.0075]
[1736172672988,1.14410736,3641.0,3640.5,0.03496386]
[1736172673356,1.14410736,3641.0,3640.7,0.0075]
[1736172673690,1.14410736,3641.0,3640.7,2.78166337]
[1736172674090,0.129,3641.4,3640.7,2.78166337]
[1736172674544,0.05883488,3641.3,3640.7,2.78166337]
[1736172674954,0.05883488,3641.3,3641.0,0.2221]
[1736172675154,0.05883488,3641.3,3641.2,0.5575]
[1736172675360,0.05883488,3641.3,3641.2,3.33879951]
[1736172675839,0.05883488,3641.3,3641.2,0.015]
[1736172676158,0.05883488,3641.3,3641.0,0.2221]
[1736172676356,0.05883488,3641.3,3640.8,3.0]
[1736172676574,0.05883488,3641.3,3640.7,0.2221]
[1736172677193,0.05883488,3641.3,3640.9,0.5575]
[1736172677682,0.05883488,3641.3,3641.0,2.77395095]
[1736172677845,0.05883488,3641.3,3641.0,2.77395026]
[1736172678045,0.05937443,3641.2,3641.1,0.565]
[1736172678245,0.05883488,3641.3,3641.1,0.565]
[1736172678500,0.05937443,3641.2,3641.1,0.565]
[1736172678842,0.05883488,3641.3,3641.1,0.565]
[1736172679819,0.05883488,3641.3,3641.2,0.58495882]
[1736172680193,0.05883488,3641.3,3641.2,3.56089882]
[1736172680525,0.05883488,3641.3,3641.2,3.53344]
[1736172681602,0.05883488,3641.3,3641.2,3.56089795]
[1736172681910,0.05883488,3641.3,3641.2,3.56089807]
[1736172682513,0.05883488,3641.3,3641.2,3.53344]
[1736172683250,0.05883488,3641.3,3641.2,3.56089756]
[1736172683832,0.05883488,3641.3,3641.2,3.53344]
[1736172685016,0.05883488,3641.3,3641.2,3.5608966]
[1736172685355,0.05883488,3641.3,3641.2,3.53344]
[1736172686033,0.05883488,3641.3,3641.2,3.52594]
[1736172686227,0.05883488,3641.3,3641.1,3.0]
[1736172686425,0.05883488,3641.3,3640.8,0.2221]
[1736172686727,0.05883488,3641.3,3640.9,0.0075]
[1736172687129,0.05948845,3641.2,3640.9,0.0075]
[1736172687635,0.05883488,3641.3,3640.9,0.5575]
[1736172687837,0.05945191,3641.1,3640.9,0.5575]
[1736172688009,0.05883488,3641.3,3640.9,0.5575]
[1736172688397,0.05948845,3641.2,3640.9,0.5575]
[1736172688602,0.05948845,3641.2,3641.0,0.02746115]
[1736172688825,0.05883488,3641.3,3640.9,0.5575]
[1736172689044,0.05945191,3641.1,3640.9,0.5575]
[1736172689249,0.05883488,3641.3,3640.9,0.5575]
[1736172689413,0.05945466,3641.0,3640.9,0.5575]
[1736172689619,0.05883488,3641.3,3640.9,0.5575]
[1736172689804,0.05945466,3641.0,3640.9,0.5575]
[1736172690358,0.05883488,3641.3,3640.9,0.58496118]
[1736172690500,0.05945466,3641.0,3640.9,0.58496118]
[1736172690699,0.05883488,3641.3,3640.9,3.33151118]
[1736172690927,0.05945466,3641.0,3640.9,3.33151118]
[1736172691131,0.05883488,3641.3,3641.0,0.0075]
[1736172691312,0.05883488,3641.3,3640.9,0.5575]
[1736172691519,0.05952775,3641.2,3641.1,0.02745928]
[1736172691733,0.05952775,3641.2,3640.9,0.565]
[1736172691917,0.05883488,3641.3,3640.9,0.565]
[1736172692241,0.05949121,3641.1,3640.9,0.59246041]
[1736172692416,0.05883488,3641.3,3640.9,0.59246041]
[1736172692740,0.05952775,3641.2,3640.9,3.33901041]
[1736172692901,0.05952775,3641.2,3641.1,3.31142]
[1736172693103,0.05883488,3641.3,3641.1,0.59245796]
[1736172693321,0.05883488,3641.3,3641.2,3.31134]
[1736172693538,0.05883488,3641.3,3641.2,3.53344]
[1736172694100,0.05883488,3641.3,3641.2,6.53344]
[1736172694715,0.05883488,3641.3,3641.2,41.53344]
[1736172696222,4.88e-06,3641.3,3641.2,41.53344]
[1736172696423,4.88e-06,3641.3,3641.2,45.76783]
[1736172696618,1.14410736,3643.1,3642.7,0.0075]
[1736172696825,1.14410736,3643.1,3642.9,0.0075]
[1736172697148,1.14410736,3643.1,3643.0,0.0075]
[1736172697330,1.14410736,3643.1,3642.4,5.8650016]
[1736172697645,1.14410736,3643.1,3643.0,35.0]
[1736172698454,3.51488,3643.5,3643.0,35.0]
[1736172698809,0.05880713,3643.4,3643.0,35.0]
[1736172699347,0.05880713,3643.4,3642.3,0.0075]
[1736172699348,2.74499,3643.0,3642.3,0.0075]
[1736172699508,0.7623,3642.8,3641.8,2.6429016]
[1736172699836,3.50744,3642.8,3641.9,35.0075]
[1736172700009,0.05920525,3642.7,3641.9,35.0075]
[1736172700208,3.50744,3642.8,3641.9,35.0075]
[1736172701034,3.50744,3642.8,3642.0,0.55]
[1736172701406,0.05898237,3642.7,3642.1,0.02745291]
[1736172701868,0.7623,3642.8,3642.2,0.565]
[1736172702143,0.7922,3643.1,3642.3,3.32295092]
[1736172702358,0.7922,3643.1,3642.4,2.74542]
[1736172702558,0.0589115,3643.0,3642.5,0.02745004]
[1736172702725,0.0589115,3643.0,3642.5,35.02745004]
[1736172703057,0.0589115,3643.0,3642.5,35.0]
[1736172703224,0.7922,3643.1,3642.5,35.0]
[1736172704167,3.53298,3643.5,3642.6,0.5849508]
[1736172704663,0.05786192,3643.4,3642.6,0.5849508]
[1736172704954,2.80255192,3643.4,3642.6,0.5575]
[1736172705511,2.80255192,3643.4,3642.7,0.02744861]
[1736172706340,0.05786192,3643.4,3642.7,0.02744861]
[1736172706746,0.7883,3643.5,3642.7,0.02744861]
[1736172706955,2.74484,3643.2,3642.5,35.0]
[1736172707356,2.74502,3643.0,3642.5,35.0]
[1736172707810,0.8032,3643.1,3642.5,35.0]
[1736172708432,0.05783177,3643.0,3642.5,35.0]
[1736172708652,2.74516,3642.8,3642.5,35.0]
[1736172709367,0.8215,3642.7,3642.5,35.0]
[1736172709544,0.8215,3642.7,3641.9,0.565]
[1736172710072,0.05789705,3642.6,3642.0,35.0]
[1736172710431,0.8215,3642.7,3642.0,35.0]
[1736172713475,3.56672,3642.7,3642.0,35.0]
[1736172714522,2.74545,3642.4,3642.0,35.0]
[1736172715802,0.8248,3642.2,3642.0,35.0]
[1736172716081,2.74566,3642.1,3642.0,35.0]
[1736172717185,2.80289585,3642.1,3642.0,35.0]
[1736172718243,0.05723585,3642.1,3642.0,35.0]
[1736172718889,2.80289585,3642.1,3642.0,35.0]
[1736172719088,2.74566,3642.1,3642.0,35.0]
[1736172719388,2.80302606,3642.1,3642.0,35.0]
[1736172721279,3.5547694,3642.1,3642.0,35.0]
[1736172721873,0.8091094,3642.1,3641.0,0.55]
[1736172722076,2.74581,3642.0,3641.0,0.55]
[1736172722274,2.74582,3641.9,3641.0,0.55]
[1736172722603,2.74597,3641.7,3641.6,35.0]
[1736172723099,2.8028593,3641.7,3641.6,35.0]
[1736172723298,0.0568893,3641.7,3641.6,35.0]
[1736172724211,0.94678404,3642.1,3641.6,37.74598]
[1736172724497,1.20096526,3642.0,3641.7,0.02745591]
[1736172725653,0.0568579,3642.0,3641.9,3.31081]
[1736172725906,0.0568579,3642.0,3641.9,3.33826308]
[1736172726203,1.14410736,3642.5,3642.0,0.5575]
[1736172726381,1.14410736,3642.5,3642.1,0.02745315]
[1736172726587,0.05694224,3642.4,3642.2,35.0]
[1736172726988,1.14410736,3642.7,3642.2,35.0]
[1736172727290,3.88937736,3642.7,3642.2,35.0]
[1736172727447,0.05669749,3642.6,3642.2,35.0]
[1736172728249,0.05669749,3642.6,3642.3,0.02745297]
[1736172728454,3.51238961,3642.7,3642.3,0.02745297]
[1736172728815,0.05685838,3642.6,3642.4,0.0075]
[1736172729149,3.51238961,3642.7,3642.4,0.0075]
[1736172729671,0.05741338,3642.6,3642.4,0.0075]
[1736172729853,0.84521338,3642.6,3642.2,35.0]
[1736172730056,0.7878,3642.6,3641.5,0.2221]
[1736172730255,0.7877,3642.0,3641.2,1.94547619]
[1736172730451,0.7877,3642.0,3641.5,35.0]
[1736172730452,0.77677638,3642.0,3641.5,35.0]
[1736172730816,2.74598,3641.7,3640.9,1.38951746]
[1736172731152,0.05716713,3641.6,3640.9,1.38951746]
[1736172731352,0.05716713,3641.6,3641.0,35.0]
[1736172731647,2.74598,3641.7,3641.0,35.0]
[1736172732302,2.74598,3641.7,3641.1,0.02746123]
[1736172732601,2.74598,3641.7,3640.9,1.38951746]
[1736172732808,1.92088374,3642.0,3640.9,0.2406]
[1736172732951,0.05698633,3641.6,3641.2,35.0]
[1736172733155,2.7459,3641.8,3641.2,35.0]
[1736172733490,0.05702287,3641.7,3641.2,35.0]
[1736172734055,2.80304287,3641.7,3641.2,35.0]
[1736172734257,2.74626,3641.4,3641.2,35.0]
[1736172734571,0.40860093,3641.3,3641.2,35.0]
[1736172735154,3.15487093,3641.3,3641.2,35.0]
[1736172735386,2.80313493,3641.3,3641.2,35.0]
[1736172735602,0.05686493,3641.3,3641.2,35.0]
[1736172735979,2.74619,3641.4,3641.2,35.0]
[1736172736302,0.05643266,3641.3,3641.2,35.0]
[1736172736686,1.14410736,3641.5,3641.2,35.0]
[1736172736887,0.05632649,3641.3,3641.2,35.0]
[1736172737401,0.7711,3641.6,3641.2,35.0]
[1736172737586,0.05632649,3641.3,3641.2,35.0]
[1736172737766,1.14410736,3641.7,3641.3,0.5575]
[1736172737979,0.05621249,3641.3,3641.2,35.0]
[1736172738211,0.05621249,3641.3,3640.9,3.0075]
[1736172738597,0.05621249,3641.3,3641.2,35.0]
[1736172742504,0.05621249,3641.3,3641.0,2.74646]
[1736172742750,0.0562192,3641.2,3641.1,0.02746052]
[1736172742972,0.0562192,3641.2,3641.0,0.55]
[1736172743249,0.05621249,3641.3,3641.0,0.55]
[1736172743250,0.05621249,3641.3,3641.1,35.0]
[1736172744466,2.74599,3641.7,3641.1,35.0]
[1736172744759,0.0562552,3641.6,3641.1,35.0]
[1736172745465,4.71783736,3641.9,3641.1,35.0]
[1736172745619,0.05621866,3641.5,3641.1,35.0]
[1736172745819,3.57373,3641.9,3641.1,35.0]
[1736172746361,0.05632826,3641.8,3641.1,35.0]
[1736172746530,0.05632826,3641.8,3641.3,0.015]
[1736172746733,1.14410736,3642.0,3641.4,0.2331]
[1736172746966,0.05644737,3641.9,3641.5,0.02745791]
[1736172747460,0.05644737,3641.9,3641.4,0.2331]
[1736172747617,0.05644737,3641.9,3641.4,0.26055867]
[1736172748965,1.14410736,3642.1,3641.4,0.26055867]
[1736172748966,0.05641084,3641.8,3641.4,0.26055867]
[1736172749337,1.14410736,3642.1,3641.4,0.26055867]
[1736172749525,0.0564839,3642.0,3641.4,0.26055867]
[1736172750667,0.2496,3641.5,3641.3,0.5575]
[1736172752679,0.2496,3641.5,3641.2,0.565]
[1736172752880,0.2496,3641.5,3641.1,35.0]
[1736172753558,0.2496,3641.5,3641.2,0.02746172]
[1736172754140,0.2496,3641.5,3641.1,35.0]
[1736172754581,0.2496,3641.5,3641.2,0.02746001]
[1736172755009,0.0562647,3641.4,3641.2,0.02746001]
[1736172755368,0.2496,3641.5,3641.2,0.02746001]
[1736172755818,0.05625139,3641.4,3641.1,35.0]
[1736172756172,0.2496,3641.5,3641.1,35.0]
[1736172759695,0.05632212,3641.4,3641.2,0.02746004]
[1736172760683,0.2496,3641.5,3641.2,0.02746004]
[1736172761021,0.2496,3641.5,3641.1,37.74641]
[1736172761324,0.2496,3641.5,3641.1,35.0]
[1736172763453,0.05632212,3641.4,3641.1,35.0]
[1736172763821,0.2496,3641.5,3641.1,35.0]
[1736172764021,0.05628558,3641.3,3641.1,35.0]
[1736172764254,0.2496,3641.5,3641.1,35.0]
[1736172764976,0.2496,3641.5,3641.2,0.02746187]
[1736172765336,0.05619546,3641.4,3641.2,0.02746187]
[1736172765570,0.05619546,3641.4,3641.1,35.0]
[1736172765927,0.7809,3641.3,3641.1,35.0]
[1736172767056,0.2496,3641.5,3641.1,35.0]
[1736172767259,0.2496,3641.5,3641.2,0.0274619]
[1736172767428,1.39370736,3641.5,3641.2,0.0274619]
[1736172767622,0.05624262,3641.4,3641.2,0.0274619]
[1736172767872,0.05624262,3641.4,3641.1,35.2331]
[1736172770578,0.05624262,3641.4,3641.1,35.0]
[1736172774451,0.05624262,3641.4,3641.2,0.02746192]
[1736172776979,0.9499856,3641.3,3641.2,0.02746192]
[1736172777283,2.42966306,3641.3,3641.1,37.7464]
[1736172778013,2.42966306,3641.3,3641.2,3.3388014]
[1736172778171,2.42966306,3641.3,3641.2,3.54444]
[1736172778362,0.05469906,3641.3,3641.2,3.54444]
[1736172778577,1.14410736,3641.4,3641.2,3.57190023]
[1736172779385,0.94949482,3641.4,3641.2,3.57190023]
[1736172779586,0.94949482,3641.4,3641.3,3.31127]
[1736172779885,0.94949482,3641.4,3641.3,6.31127]
[1736172780083,0.94949482,3641.4,3641.3,6.54437]
[1736172780398,0.94949482,3641.4,3641.3,41.54437]
[1736172781271,0.2496,3641.5,3641.4,6.54429]
[1736172781920,0.30450027,3641.5,3641.4,41.54429]
[1736172782269,0.2496,3641.5,3641.4,41.54429]
[1736172782471,0.2496,3641.5,3641.4,47.39247113]
[1736172783687,1.14410736,3642.5,3642.4,2.74544]
[1736172783875,1.14410736,3642.5,3642.4,3.31044]
[1736172784191,1.19996236,3642.5,3642.4,3.31044]
[1736172784905,0.055855,3642.5,3642.4,3.31044]
[1736172785291,3.51534149,3643.0,3642.5,0.565]
[1736172785990,3.51534149,3643.0,3642.6,0.55]
[1736172786293,0.8315,3643.1,3642.7,35.0]
[1736172787238,1.20067684,3643.1,3642.2,3.2331]
[1736172787595,1.20067684,3643.1,3642.3,35.0]
[1736172787795,1.20067684,3643.1,3642.4,0.02745154]
[1736172787996,0.05632432,3643.0,3642.4,0.02745154]
[1736172788652,0.05632432,3643.0,3642.5,35.0]
[1736172789125,0.7571,3642.9,3642.5,35.0]
[1736172789367,3.55841447,3642.9,3642.5,35.0]
[1736172790031,2.74524,3642.7,3642.5,35.0]
[1736172790232,3.56269,3642.6,3641.5,1.15124228]
[1736172790422,3.61886565,3642.6,3641.6,2.77347645]
[1736172790741,3.61886565,3642.6,3641.7,35.0]
[1736172791149,0.8174,3642.6,3641.9,0.0075]
[1736172791343,0.8174,3642.6,3642.1,0.5575]
[1736172791533,0.94654297,3642.5,3642.2,0.02745286]
[1736172791728,1.00249357,3642.5,3642.3,35.0]
[1736172792791,0.0559506,3642.5,3642.3,35.0]
[1736172793091,0.8174,3642.6,3642.3,35.0]
[1736172797060,1.14410736,3643.0,3642.4,0.565]
[1736172797264,1.14410736,3643.0,3642.4,0.0349494]
[1736172797595,1.14410736,3643.1,3642.4,0.0349494]
[1736172798965,1.14410736,3643.1,3642.4,2.7803894]
[1736172799264,1.96390736,3643.3,3642.4,2.7803894]
[1736172799459,0.05523809,3643.0,3642.4,2.7803894]
[1736172799679,1.96390736,3643.3,3642.4,2.7803894]
[1736172799877,0.05520158,3642.9,3642.6,0.2406]
[1736172800098,1.96390736,3643.3,3642.6,0.2406]
[1736172800296,1.46227284,3643.3,3642.3,2.97859]
[1736172800611,0.0553936,3643.2,3642.7,35.0]
[1736172801022,0.828,3643.1,3642.7,35.0]
[1736172801315,0.8833571,3643.1,3642.7,35.0]
[1736172801676,0.7895,3642.8,3642.0,3.0]
[1736172801884,0.7895,3642.8,3642.0,5.74571]
[1736172802208,0.05521106,3642.7,3642.1,0.02745387]
[1736172802536,0.05521106,3642.7,3642.2,0.565]
[1736172802732,0.05521106,3642.7,3642.3,0.2331]
[1736172802877,0.05521106,3642.7,3642.4,0.02745162]
[1736172803236,1.90930736,3643.1,3642.4,0.02745162]
[1736172803526,0.05517455,3642.6,3642.0,3.0]
[1736172803693,0.8152,3642.5,3642.0,3.0]
[1736172803897,0.87033803,3642.5,3642.1,0.5849532]
[1736172804083,0.87033803,3642.5,3642.1,0.5575]
[1736172804785,0.87033803,3642.5,3642.1,0.58495327]
[1736172805221,0.87033803,3642.5,3642.1,0.5575]
[1736172806125,0.05513803,3642.5,3642.1,0.58495325]
[1736172806326,0.05513803,3642.5,3642.4,0.0075]
[1736172806529,1.95790736,3643.1,3642.4,3.01349022]
[1736172806733,0.8138,3643.1,3642.4,3.01349022]
[1736172806888,0.05530489,3643.0,3642.6,0.0075]
[1736172807088,0.05530489,3643.0,3642.6,2.78022923]
[1736172807283,0.05530489,3643.0,3642.8,2.75264]
[1736172807489,1.14410736,3643.2,3642.8,2.78008807]
[1736172807790,0.05521568,3642.9,3642.8,3.33008807]
[1736172808011,1.14410736,3643.2,3642.8,3.33008807]
[1736172808215,0.8257,3643.4,3642.8,3.33008807]
[1736172808383,1.14410736,3643.6,3643.0,0.2406]
[1736172808584,1.14410736,3643.6,3643.0,0.26804657]
[1736172809830,0.05583923,3643.5,3643.0,0.0075]
[1736172810034,0.8291,3643.4,3642.5,2.74535]
[1736172810244,0.88490273,3643.4,3642.5,2.74535]
[1736172810433,3.62962273,3643.4,3642.6,0.0075]
[1736172811042,2.74477,3643.3,3642.3,5.74544]
[1736172811239,3.16361063,3643.3,3642.4,0.02744955]
[1736172811440,0.8266,3643.2,3642.7,35.0]
[1736172811749,0.88237686,3643.2,3642.7,35.0]
[1736172811904,0.8266,3643.2,3642.7,35.0]
[1736172812646,0.752,3643.0,3642.7,35.0]
[1736172812815,1.13798873,3643.0,3642.7,35.0]
[1736172813017,0.36296727,3643.3,3642.7,35.0]
[1736172813018,0.8115,3642.8,3642.7,35.0]
[1736172813430,0.86698321,3642.8,3642.7,35.0]
[1736172813627,3.55322321,3642.8,3642.7,35.0]
[1736172815595,4.4997709,3642.8,3642.7,35.0]
[1736172816709,1.7546309,3642.8,3642.7,35.0]
[1736172819809,3.17562742,3642.8,3642.7,35.0]
[1736172821111,4.32002388,3642.8,3642.7,35.0]
[1736172821304,5.42705703,3642.8,3642.7,35.0]
[1736172821717,8.17219703,3642.8,3642.7,35.0]
[1736172822020,8.17219703,3642.8,3641.7,3.0]
[1736172822021,5.42705703,3642.8,3641.7,3.0]
[1736172822175,2.74534,3642.6,3641.7,3.0]
[1736172822574,4.28266057,3642.8,3642.0,35.0]
[1736172822575,0.05378663,3642.5,3642.0,35.0]
[1736172822797,5.86531421,3642.8,3642.0,35.0]
[1736172823040,0.05385967,3642.7,3642.0,35.0]
[1736172823945,1.14677188,3642.6,3642.0,35.0]
[1736172824328,0.05378663,3642.5,3642.0,35.0]
[1736172825016,2.62338944,3642.5,3642.0,35.0]
[1736172826048,2.37138488,3642.4,3642.0,35.0]
[1736172826247,2.425135,3642.4,3642.0,35.0]
[1736172827471,0.94855395,3642.3,3642.0,35.0]
[1736172827762,1.00226754,3642.3,3642.0,35.0]
[1736172828318,0.7647,3642.2,3642.0,35.0]
[1736172828534,0.81837707,3642.2,3642.0,35.0]
[1736172834832,0.05367707,3642.2,3642.0,35.0]
[1736172835130,1.14677188,3642.3,3642.0,35.0]
[1736172835293,0.05355018,3642.1,3642.0,35.0]
[1736172835487,1.14677188,3642.3,3642.0,35.0]
[1736172836033,0.05360241,3642.2,3642.0,35.0]
[1736172836335,1.14677188,3642.3,3642.0,35.0]
[1736172836691,0.05360241,3642.2,3642.0,35.0]
[1736172836994,1.14677188,3642.3,3642.0,35.0]
[1736172837194,1.14677188,3642.4,3642.0,35.0]
[1736172837432,0.05360241,3642.2,3642.0,35.0]
[1736172837626,1.14677188,3642.4,3642.0,35.0]
[1736172837984,0.05363893,3642.3,3642.0,35.0]
[1736172839716,0.05363893,3642.3,3642.0,37.74574]
[1736172840330,0.05363893,3642.3,3642.1,0.5575]
[1736172840515,1.14677188,3642.4,3642.2,0.2331]
[1736172841655,1.14677188,3642.7,3642.2,0.2331]
[1736172842130,0.05364899,3642.6,3642.2,0.2331]
[1736172843787,0.05364899,3642.6,3642.2,2.97869]
[1736172844008,0.05364899,3642.6,3642.3,35.0]
[1736172849803,0.94892585,3642.5,3642.3,35.0]
[1736172850240,0.05358936,3642.4,3642.3,35.0]
[1736172851288,3.36837607,3642.4,3642.3,35.0]
[1736172851491,3.36837607,3642.4,3641.6,3.2331]
[1736172851699,0.62293607,3642.4,3641.6,3.26055731]
[1736172851994,0.05358936,3642.4,3641.9,35.0]
[1736172852498,1.74772585,3642.5,3641.9,35.0]
[1736172852711,0.05344655,3642.3,3641.9,35.0]
[1736172852940,1.74772585,3642.5,3641.9,35.0]
[1736172853113,0.05341003,3642.2,3641.9,35.0]
[1736172853312,3.51851138,3642.3,3641.9,35.0]
[1736172853637,0.0533735,3642.1,3641.9,35.0]
[1736172853941,3.51851138,3642.3,3641.9,35.0]
[1736172854138,0.05333697,3642.0,3641.9,35.0]
[1736172854298,3.51851138,3642.3,3641.9,35.0]
[1736172854736,3.51851138,3642.3,3641.8,2.74589]
[1736172854737,0.05339662,3642.2,3641.8,2.74589]
[1736172854893,1.14677188,3642.4,3641.9,0.02745542]
[1736172855094,0.05336009,3642.1,3641.9,0.02745542]
[1736172855294,1.14677188,3642.4,3642.0,35.0]
[1736172856193,3.51913091,3642.4,3642.0,35.0]
[1736172857649,2.09571549,3642.3,3642.0,35.0]
[1736172858544,2.09571549,3642.3,3641.8,0.0075]
[1736172858545,0.8063,3642.1,3641.8,0.0075]
[1736172859048,0.05344332,3642.0,3641.9,35.0]
[1736172860817,1.00238693,3642.0,3641.9,35.0]
[1736172861646,1.00238693,3642.0,3641.9,38.54391]
[1736172861952,0.94894361,3642.0,3641.9,38.54391]
[1736172863746,0.94894361,3642.2,3642.0,0.015]
[1736172864255,0.05346958,3642.1,3642.0,0.015]
[1736172864599,0.94894361,3642.2,3642.0,0.015]
[1736172866848,0.05346958,3642.1,3642.0,0.015]
[1736172867365,0.94894361,3642.2,3642.0,0.015]
[1736172867850,0.05346958,3642.1,3642.0,0.015]
[1736172868354,1.14677188,3642.4,3642.0,0.015]
[1736172868707,0.05354262,3642.3,3642.0,0.015]
[1736172869055,1.2003145,3642.3,3642.0,0.015]
[1736172869253,1.2003145,3642.3,3642.0,0.0075]
[1736172870333,0.9498355,3642.2,3642.0,0.0075]
[1736172871711,0.9498355,3642.2,3642.1,35.0]
[1736172872427,2.09660738,3642.4,3642.1,35.0]
[1736172874262,0.9498355,3642.3,3642.1,35.0]
[1736172874962,0.05355324,3642.2,3642.1,35.0]
[1736172875112,1.00338874,3642.2,3642.1,35.0]
[1736172875315,0.9498355,3642.2,3642.1,35.0]
[1736172875547,1.00338874,3642.2,3642.1,35.0]
[1736172876555,1.00338874,3642.2,3642.1,36.20225909]
[1736172877962,0.05355324,3642.2,3642.1,36.20225909]
[1736172878332,1.14677188,3642.4,3642.1,36.20225909]
[1736172878531,1.14677188,3642.4,3642.3,3.94026909]
[1736172878731,1.14677188,3642.4,3642.3,4.17336909]
[1736172878928,1.14677188,3642.4,3642.3,0.2331]
[1736172879630,1.14677188,3642.4,3642.3,0.7981]
[1736172880552,1.14677188,3642.4,3642.3,0.565]
[1736172881265,0.94981499,3642.5,3642.4,0.015]
[1736172882164,0.94981499,3642.5,3642.4,35.015]
[1736172882364,2.42742001,3642.5,3642.4,35.015]
[1736172883663,1.00253743,3642.5,3642.4,35.015]
[1736172885169,1.00253743,3642.5,3642.4,35.0075]
[1736172890493,1.00253743,3642.5,3642.4,36.20225909]
[1736172890792,1.00253743,3642.5,3642.4,38.94769909]
[1736172891396,1.00253743,3642.5,3642.4,35.0075]
[1736172892253,0.05272244,3642.5,3642.4,35.0075]
[1736172892461,1.14677188,3642.7,3642.4,36.20225909]
[1736172892789,1.14677188,3642.7,3642.6,1.99285909]
[1736172893089,1.19709228,3642.7,3642.6,4.73814909]